bitfinex/quotes_SOLUSD_20250915
["timestamp","ask_amount","ask_price","bid_price","bid_amount"]
[1757898064600,76.61515936,240.97,240.96,0.06]
[1757898064804,77.26515936,240.97,240.96,0.06]
[1757898064975,79.38796875,240.97,240.96,0.06]
[1757898065298,78.77829757,240.97,240.96,0.06]
[1757898065598,77.60740125,240.97,240.96,0.06]
[1757898065899,81.41505353,240.97,240.96,0.06]
[1757898066108,94.96927177,240.97,240.96,1e-08]
[1757898066999,62.05927177,240.97,240.96,1e-08]
[1757898067173,87.73883888,240.97,240.96,1e-08]
[1757898067374,88.38883888,240.97,240.96,1e-08]
[1757898067575,92.19649116,240.97,240.96,1e-08]
[1757898068702,59.93649116,240.97,240.96,1e-08]
[1757898068900,92.19649116,240.97,240.96,1e-08]
[1757898069477,94.96881118,240.97,240.96,1e-08]
[1757898071082,13.59559401,240.96,240.94,0.06]
[1757898071291,51.04600238,240.95,240.94,0.06]
[1757898071486,54.5283224,240.95,240.94,0.06]
[1757898071785,55.64689034,240.95,240.94,0.06]
[1757898072409,63.08603956,240.95,240.94,0.06]
[1757898073389,30.82603956,240.95,240.94,0.06]
[1757898073575,63.08603956,240.95,240.94,0.06]
[1757898074103,30.82603956,240.95,240.94,0.06]
[1757898074303,63.06603956,240.95,240.94,0.06]
[1757898074605,39.59559401,240.91,240.9,0.66]
[1757898074774,72.78750708,240.91,240.82,0.95191307]
[1757898074976,0.95191307,240.88,240.82,0.95191307]
[1757898075182,26.0,240.85,240.82,0.95191307]
[1757898075502,26.0,240.85,240.83,1.61191307]
[1757898075697,26.0,240.85,240.84,4.81213419]
[1757898076074,26.0,240.86,240.84,4.81213419]
[1757898076372,26.0,240.86,240.85,0.66]
[1757898078003,31.10370249,240.86,240.85,0.66]
[1757898078200,13.59559401,240.85,240.78,0.06]
[1757898078401,0.95191307,240.84,240.8,0.66]
[1757898078995,0.95191307,240.83,240.8,0.66]
[1757898079592,26.0,240.81,240.8,0.66]
[1757898079804,26.0,240.82,240.8,0.66]
[1757898081101,26.95191307,240.82,240.78,0.06]
[1757898081293,26.0,240.8,240.79,0.66]
[1757898082003,26.0,240.82,240.79,4.81299638]
[1757898082206,26.0,240.82,240.8,0.66]
[1757898082512,26.95191307,240.82,240.78,0.06]
[1757898082685,0.95191307,240.82,240.81,0.66]
[1757898082885,33.23191307,240.83,240.81,0.66]
[1757898083594,26.0,240.8,240.78,0.06]
[1757898084184,33.23191307,240.83,240.78,0.06]
[1757898084185,26.0,240.82,240.79,0.66]
[1757898084787,26.0,240.82,240.78,4.21315681]
[1757898085014,26.0,240.82,240.8,0.66]
[1757898085204,26.0,240.82,240.81,0.66]
[1757898086193,26.0,240.84,240.81,4.81265146]
[1757898086516,26.0,240.84,240.82,0.66]
[1757898086691,0.95191307,240.83,240.78,0.06]
[1757898086895,0.95191307,240.82,240.79,0.66]
[1757898087101,0.95191307,240.82,240.8,0.66]
[1757898087416,58.28,240.85,240.81,0.66]
[1757898087417,14.54750708,240.84,240.81,0.66]
[1757898087596,0.95191307,240.84,240.82,0.66]
[1757898087793,0.95191307,240.84,240.83,0.66]
[1757898088116,0.95191307,240.84,240.81,0.66]
[1757898088117,26.0,240.83,240.81,0.66]
[1757898088295,26.0,240.83,240.82,0.66]
[1757898089020,0.95191307,240.84,240.82,0.66]
[1757898089321,26.0,240.83,240.78,5.16491968]
[1757898089690,32.28,240.86,240.79,0.95191307]
[1757898089691,0.95191307,240.86,240.79,0.95191307]
[1757898089895,59.77236065,240.86,240.8,0.66]
[1757898090115,59.77236065,240.86,240.81,4.15265146]
[1757898090313,59.77236065,240.86,240.82,0.66]
[1757898090494,26.0,240.84,240.82,0.66]
[1757898091122,26.0,240.84,240.82,2.15236065]
[1757898091326,26.0,240.85,240.82,2.15236065]
[1757898091635,26.0,240.85,240.81,4.15265146]
[1757898091636,5.11747853,240.95,240.84,1.49236065]
[1757898091830,26.0,240.91,240.86,1.49236065]
[1757898091998,26.0,240.91,240.87,0.66]
[1757898092199,26.0,240.9,240.88,0.66]
[1757898092505,26.0,240.9,240.89,0.66]
[1757898093225,1.49236065,240.91,240.87,0.66]
[1757898093428,26.0,240.89,240.88,0.66]
[1757898093925,27.49236065,240.91,240.88,0.66]
[1757898094108,26.0,240.89,240.83,14.53307311]
[1757898094309,26.0,240.89,240.86,0.66]
[1757898094633,0.71,240.88,240.83,0.66]
[1757898095006,31.6436555,240.89,240.81,4.15256048]
[1757898095200,31.6436555,240.89,240.82,0.66]
[1757898095528,32.3536555,240.89,240.82,0.66]
[1757898096321,1.49236065,240.87,240.82,0.66]
[1757898096520,26.0,240.85,240.83,0.66]
[1757898096830,26.0,240.85,240.84,0.66]
[1757898097622,1.49236065,240.87,240.78,26.31881211]
[1757898097623,26.0,240.84,240.82,0.66]
[1757898097810,26.0,240.84,240.83,0.66]
[1757898099824,26.0,240.88,240.83,0.66]
[1757898100035,26.0,240.88,240.83,4.81227554]
[1757898100340,26.0,240.86,240.84,0.72]
[1757898100634,26.0,240.86,240.85,0.72]
[1757898102016,26.0,240.88,240.85,0.72]
[1757898102340,26.0,240.88,240.86,0.72]
[1757898102528,26.0,240.86,240.84,4.87211562]
[1757898102727,26.0,240.86,240.85,0.72]
[1757898103550,3.51725313,240.94,240.85,14.49]
[1757898103741,1.49236065,240.91,240.86,0.72]
[1757898103930,26.0,240.88,240.87,0.72]
[1757898105056,26.0,240.88,240.85,14.49]
[1757898105230,26.0,240.88,240.86,0.72]
[1757898105745,26.0,240.88,240.87,0.72]
[1757898106650,26.0,240.88,240.85,17.92193651]
[1757898106651,26.0,240.88,240.85,13.77]
[1757898106816,1.49236065,240.87,240.85,13.77]
[1757898108126,1.49236065,240.87,240.85,14.49]
[1757898108325,26.0,240.91,240.86,0.72]
[1757898108522,3.48904789,240.9,240.84,13.20673285]
[1757898108727,2.7991724,240.89,240.84,13.20673285]
[1757898109026,1.49236065,240.87,240.83,13.77]
[1757898109226,26.0,240.84,240.81,0.72]
[1757898109423,1.49236065,240.83,240.78,14.55]
[1757898109643,27.49236065,240.83,240.78,14.55]
[1757898109844,1.49236065,240.81,240.8,12.48881211]
[1757898110018,1.49236065,240.81,240.78,0.78]
[1757898110537,1.49236065,240.81,240.79,0.72]
[1757898110832,26.0,240.82,240.8,0.72]
[1757898111038,0.69,240.89,240.8,0.72]
[1757898111244,1.49236065,240.87,240.8,4.8732245]
[1757898111544,2.7994432,240.86,240.81,0.72]
[1757898111748,2.7994432,240.85,240.81,0.72]
[1757898111948,26.0,240.87,240.82,4.15247902]
[1757898112140,2.79937332,240.86,240.84,1.49236065]
[1757898112345,3.21982735,240.93,240.84,1.49236065]
[1757898112539,2.7993619,240.92,240.86,1.49236065]
[1757898112845,28.7993619,240.91,240.87,0.72]
[1757898113151,26.0,240.91,240.87,0.72]
[1757898113334,26.0,240.92,240.87,2.21236065]
[1757898113534,2.79896491,240.91,240.88,0.72]
[1757898113727,26.0,240.92,240.87,1.49236065]
[1757898113924,2.79896491,240.91,240.89,4.87122207]
[1757898114122,26.0,240.93,240.9,0.72]
[1757898114326,2.7986563,240.92,240.9,0.72]
[1757898114528,26.0,240.93,240.9,0.72]
[1757898114754,2.79857235,240.92,240.89,4.15122207]
[1757898115052,0.03,240.94,240.91,0.71]
[1757898115344,2.79791527,240.93,240.91,0.71]
[1757898115650,2.79791527,240.93,240.89,4.15122207]
[1757898115651,2.79799889,240.92,240.89,4.86122207]
[1757898115865,26.0,240.93,240.9,0.71]
[1757898116030,2.79799926,240.92,240.9,4.86096318]
[1757898116345,26.0,240.93,240.9,4.86096318]
[1757898116844,28.79758442,240.92,240.85,12.48621314]
[1757898117049,27.49236065,240.93,240.87,0.71]
[1757898117228,2.79766877,240.92,240.87,4.86153543]
[1757898117429,27.49236065,240.93,240.88,0.71]
[1757898117631,2.79732474,240.92,240.88,0.71]
[1757898117824,27.49236065,240.93,240.88,0.71]
[1757898118034,2.79732496,240.92,240.9,4.15110004]
[1757898118252,26.0,240.93,240.9,13.77]
[1757898118755,26.7,240.93,240.9,13.77]
[1757898119534,1.49236065,240.91,240.9,13.77]
[1757898119937,2.19236065,240.91,240.9,13.77]
[1757898121031,1.49236065,240.91,240.9,13.77]
[1757898121329,0.03,240.94,240.9,4.86106013]
[1757898121531,0.03,240.94,240.91,0.71]
[1757898122047,0.03,240.94,240.92,0.71]
[1757898122750,0.03,240.94,240.91,6.77289595]
[1757898122924,0.03,240.94,240.93,0.71]
[1757898123131,0.03,240.94,240.93,4.86058315]
[1757898123330,0.03,240.94,240.93,0.71]
[1757898123534,0.03,240.94,240.9,4.86107107]
[1757898123750,0.03,240.94,240.91,0.71]
[1757898124152,0.03,240.94,240.92,0.71]
[1757898124356,0.73,240.94,240.9,13.58239775]
[1757898124558,2.22236065,240.94,240.88,18.63130209]
[1757898125060,26.0,240.9,240.88,13.77]
[1757898125834,1.49236065,240.9,240.88,13.77]
[1757898126544,1.49236065,240.92,240.88,18.63143976]
[1757898127760,1.49236065,240.92,240.89,0.71]
[1757898128056,1.49236065,240.92,240.9,0.71]
[1757898128255,1.49236065,240.92,240.88,18.63143976]
[1757898128463,0.03,240.94,240.89,0.71]
[1757898128760,1.49236065,240.93,240.89,0.71]
[1757898129160,1.49236065,240.93,240.9,0.71]
[1757898129862,1.49236065,240.93,240.89,4.15123045]
[1757898130166,0.03,240.94,240.9,0.71]
[1757898130376,0.03,240.94,240.9,2.20236065]
[1757898130662,0.03,240.94,240.9,32.99]
[1757898130883,0.03,240.94,240.92,1.49236065]
[1757898131231,0.03,240.94,240.9,33.77236065]
[1757898131435,0.03,240.94,240.93,0.71]
[1757898131636,0.03,240.94,240.93,6.52499593]
[1757898132361,0.03,240.94,240.93,20.29499593]
[1757898133247,0.03,240.94,240.93,33.04686896]
[1757898135164,0.03,240.94,240.93,34.53922961]
[1757898135366,0.03,240.97,240.95,13.74]
[1757898135561,0.03,240.97,240.96,33.77236065]
[1757898135769,0.03,240.97,240.96,49.7147213]
[1757898135969,0.03,240.97,240.96,64.9740358]
[1757898136274,0.03,240.97,240.96,63.48167515]
[1757898136876,0.03,240.97,240.96,69.1241022]
[1757898137255,0.03,241.0,240.97,33.59559401]
[1757898137456,0.03,241.0,240.99,13.59559401]
[1757898137672,0.03,241.0,240.99,13.74]
[1757898137876,0.03,241.0,240.99,46.02]
[1757898138183,2.24236065,241.0,240.98,32.28]
[1757898138361,0.03,241.0,240.98,32.28]
[1757898138860,0.03,241.0,240.98,36.42957328]
[1757898139275,0.03,241.0,240.94,1.49236065]
[1757898139579,0.75,241.0,240.96,4.15002538]
[1757898140178,2.24236065,241.0,240.97,32.32]
[1757898141150,2.24236065,241.0,240.97,36.46987241]
[1757898142588,2.24236065,241.0,240.97,50.20987241]
[1757898143162,1.52236065,241.0,240.97,50.20987241]
[1757898143685,0.03,241.0,240.98,0.71]
[1757898143997,0.03,241.0,240.97,50.20987241]
[1757898144173,0.03,241.0,240.97,50.91987241]
[1757898145182,0.03,241.0,240.99,4.14954977]
[1757898145479,0.03,241.0,240.99,17.88954977]
[1757898145985,0.03,241.0,240.99,18.59954977]
[1757898149780,0.03,241.0,240.99,19.55287502]
[1757898151387,0.03,241.0,240.99,165.94846903]
[1757898151690,0.03,241.03,241.0,27.30559401]
[1757898151862,0.03,241.03,241.02,0.95332525]
[1757898152063,0.03,241.09,241.03,13.59559401]
[1757898152281,0.03,241.09,241.08,0.95332525]
[1757898152469,0.03,241.09,241.08,33.21332525]
[1757898152662,0.03,241.09,241.08,33.92332525]
[1757898152889,0.03,241.09,241.08,38.07132591]
[1757898154066,0.03,241.09,241.08,51.66691992]
[1757898154468,0.03,241.09,241.08,50.71359467]
[1757898154783,0.03,241.09,241.08,51.66691992]
[1757898155367,0.03,241.09,241.08,4.14800066]
[1757898155564,0.75,241.09,241.08,32.26]
[1757898156393,0.03,241.09,241.08,32.26]
[1757898157092,0.03,241.09,241.08,32.97]
[1757898157820,0.03,241.09,241.08,32.26]
[1757898159512,0.69,241.09,241.07,4.14816589]
[1757898159806,0.69,241.09,241.08,32.3]
[1757898160196,0.03,241.09,241.08,32.3]
[1757898160392,0.03,241.09,241.08,45.91]
[1757898161410,26.98332525,241.09,241.0,0.66]
[1757898161910,27.41332525,241.09,241.0,33.04]
[1757898162418,4.14800066,241.08,241.01,4.14920542]
[1757898162617,26.0,241.05,241.01,4.14920542]
[1757898163117,26.95332525,241.05,241.0,32.38]
[1757898163401,0.95332525,241.01,240.98,32.38]
[1757898164820,26.0,241.0,240.98,32.38]
[1757898165204,26.0,241.0,240.96,36.52993264]
[1757898165386,0.95332525,241.01,240.96,36.52993264]
[1757898165709,0.95332525,240.97,240.93,0.06]
[1757898165891,0.95332525,240.97,240.93,32.42]
[1757898166814,0.95332525,240.97,240.93,36.57056168]
[1757898167619,0.95332525,240.95,240.93,32.42]
[1757898167795,0.95332525,240.95,240.93,36.57056091]
[1757898168498,0.95332525,240.95,240.93,37.23056091]
[1757898169221,0.95332525,240.95,240.93,32.42]
[1757898169430,0.95332525,240.95,240.93,44.81]
[1757898169602,0.95332525,240.94,240.93,44.81]
[1757898169997,0.95332525,240.94,240.93,12.45]
[1757898170413,0.95332525,240.95,240.93,12.45]
[1757898171915,0.95332525,241.01,240.94,33.02]
[1757898172136,0.95332525,241.01,240.95,0.66]
[1757898173099,26.0,241.0,240.95,0.66]
[1757898173322,0.95332525,241.0,240.96,0.66]
[1757898173524,0.95332525,241.0,240.95,4.15023863]
[1757898173814,0.95332525,240.96,240.94,32.36]
[1757898174015,0.95332525,240.95,240.94,32.36]
[1757898174201,0.95332525,240.95,240.93,12.45]
[1757898174622,0.95332525,240.95,240.93,0.06]
[1757898174826,1.38332525,240.95,240.93,0.06]
[1757898175236,4.58041089,240.94,240.93,0.06]
[1757898175723,8.81387357,240.94,240.93,0.06]
[1757898176306,5.53373614,240.94,240.93,0.06]
[1757898177128,22.52740561,240.94,240.93,0.06]
[1757898177426,25.30704089,240.94,240.93,0.06]
[1757898178212,51.30704089,240.94,240.93,0.06]
[1757898178611,57.72704089,240.94,240.93,0.06]
[1757898180332,26.0,240.91,240.9,0.06]
[1757898180501,40.54891926,240.91,240.9,0.06]
[1757898180701,40.97891926,240.91,240.9,0.06]
[1757898181726,45.12984699,240.91,240.9,0.06]
[1757898181931,77.52984699,240.91,240.9,0.06]
[1757898182522,87.90716632,240.91,240.88,0.06]
[1757898182721,14.54891926,240.89,240.88,0.06]
[1757898183223,14.97891926,240.89,240.88,0.06]
[1757898184137,19.13019162,240.89,240.88,0.06]
[1757898184719,51.53019162,240.89,240.88,0.06]
[1757898184920,51.10019162,240.89,240.88,0.06]
[1757898185945,51.53019162,240.89,240.88,0.06]
[1757898187016,51.53019162,240.89,240.87,0.06]
[1757898187224,39.59559401,240.86,240.78,13.2]
[1757898187547,0.95332525,240.79,240.76,0.7]
[1757898187756,3.813301,240.84,240.76,0.7]
[1757898187757,0.95332525,240.77,240.76,0.7]
[1757898188327,0.95332525,240.77,240.71,4.15437077]
[1757898188554,0.95332525,240.77,240.72,0.66]
[1757898189541,26.95332525,240.74,240.73,0.66]
[1757898189962,26.0,240.78,240.73,0.66]
[1757898190136,0.95332525,240.74,240.73,0.66]
[1757898192130,0.95332525,240.74,240.64,13.2]
[1757898192338,0.95332525,240.71,240.65,0.66]
[1757898193461,0.95332525,240.71,240.66,4.15523975]
[1757898193640,0.95332525,240.72,240.67,0.66]
[1757898193831,26.0,240.74,240.68,0.95332525]
[1757898194154,26.0,240.74,240.69,0.66]
[1757898194324,0.95332525,240.75,240.69,0.66]
[1757898194528,26.95332525,240.75,240.69,0.66]
[1757898195144,0.95332525,240.75,240.69,0.66]
[1757898195356,26.0,240.76,240.7,14.5409223]
[1757898195562,26.95332525,240.77,240.71,0.66]
[1757898195956,0.95332525,240.77,240.71,0.66]
[1757898196256,0.95332525,240.79,240.72,0.95332525]
[1757898196461,0.95332525,240.79,240.73,0.66]
[1757898196668,0.95332525,240.78,240.73,0.66]
[1757898197043,0.95332525,240.78,240.73,13.86]
[1757898197264,0.95332525,240.78,240.74,0.66]
[1757898197455,0.95332525,240.78,240.73,13.2]
[1757898197771,0.95332525,240.78,240.75,0.66]
[1757898197973,0.95332525,240.78,240.76,0.66]
[1757898198157,0.95332525,240.78,240.77,0.66]
[1757898198868,26.95332525,240.78,240.77,0.66]
[1757898199268,5.10654685,240.78,240.74,0.66]
[1757898199477,0.95332525,240.75,240.73,13.2]
[1757898199685,4.1532216,240.78,240.73,13.2]
[1757898199686,0.95332525,240.74,240.73,13.2]
[1757898200163,0.95332525,240.75,240.73,13.86]
[1757898200364,0.43,240.87,240.74,5.76718418]
[1757898200569,0.95332525,240.86,240.79,0.95332525]
[1757898200756,0.95332525,240.86,240.8,4.81282392]
[1757898200951,0.95332525,240.85,240.8,0.66]
[1757898201161,0.95332525,240.84,240.81,0.66]
[1757898202451,0.95332525,240.82,240.78,0.66]
[1757898202653,0.95332525,240.79,240.75,13.86]
[1757898202859,0.95332525,240.79,240.76,0.66]
[1757898203064,26.0,240.83,240.77,0.66]
[1757898203258,26.95332525,240.81,240.77,0.66]
[1757898203469,0.95332525,240.8,240.77,0.66]
[1757898203663,26.0,240.81,240.78,0.66]
[1757898203968,26.0,240.83,240.78,0.66]
[1757898204173,26.0,240.83,240.8,4.15269343]
[1757898204355,26.0,240.86,240.81,0.66]
[1757898204551,26.0,240.86,240.82,0.66]
[1757898205073,0.03,240.85,240.82,0.66]
[1757898205274,0.03,240.85,240.83,0.66]
[1757898205652,0.03,240.85,240.84,0.66]
[1757898206168,0.03,240.85,240.84,18.01213419]
[1757898206357,0.03,240.85,240.84,13.86]
[1757898206554,0.03,240.85,240.84,13.2]
[1757898207077,2.35099554,240.85,240.8,13.2]
[1757898207268,2.32099554,240.81,240.77,0.66]
[1757898207576,2.32099554,240.78,240.75,45.72]
[1757898207881,2.32099554,240.77,240.75,0.66]
[1757898208286,2.32099554,240.76,240.75,0.66]
[1757898208575,28.32099554,240.76,240.75,0.66]
[1757898208778,2.32099554,240.76,240.75,0.66]
[1757898210470,2.32099554,240.76,240.72,4.15405052]
[1757898210653,26.43,240.8,240.72,4.81405052]
[1757898210975,2.32099554,240.76,240.73,0.66]
[1757898211275,2.32099554,240.77,240.74,0.66]
[1757898211466,2.32099554,240.77,240.72,4.15405052]
[1757898211660,10.8108247,240.83,240.72,4.15405052]
[1757898211661,4.58246378,240.83,240.73,0.66]
[1757898211983,10.37955526,240.86,240.74,3.60061722]
[1757898211984,29.60061722,240.81,240.74,3.60061722]
[1757898212180,29.60061722,240.81,240.75,4.26061722]
[1757898212357,29.60061722,240.81,240.76,0.66]
[1757898212682,26.0,240.83,240.77,3.60061722]
[1757898212885,3.60061722,240.82,240.77,0.66]
[1757898213088,3.60061722,240.82,240.78,0.66]
[1757898213686,3.60061722,240.82,240.79,0.66]
[1757898213868,3.60061722,240.83,240.79,0.66]
[1757898214061,3.60061722,240.83,240.8,0.66]
[1757898214388,3.60061722,240.84,240.81,0.66]
[1757898214770,26.03,240.85,240.77,14.53669476]
[1757898214771,3.60061722,240.83,240.79,0.66]
[1757898215073,3.60061722,240.82,240.77,4.15334136]
[1757898215271,3.60061722,240.82,240.78,0.66]
[1757898216260,3.60061722,240.82,240.78,4.8130799]
[1757898217985,30.15218289,240.84,240.76,13.2]
[1757898217986,3.60061722,240.81,240.76,13.2]
[1757898218166,3.60061722,240.81,240.76,13.86]
[1757898218362,3.60061722,240.8,240.76,0.66]
[1757898219179,3.60061722,240.8,240.76,4.81348175]
[1757898219383,26.0,240.79,240.76,4.81348175]
[1757898219884,26.0,240.78,240.74,4.15370408]
[1757898220077,26.0,240.78,240.74,4.84370408]
[1757898220472,3.60061722,240.79,240.74,4.15370408]
[1757898220473,26.0,240.77,240.74,4.15370408]
[1757898220785,3.60061722,240.78,240.74,4.15370408]
[1757898221395,3.60061722,240.78,240.75,0.69]
[1757898222287,3.60061722,240.78,240.73,4.15403148]
[1757898222592,26.0,240.76,240.74,0.69]
[1757898223175,3.60061722,240.78,240.74,0.69]
[1757898223503,26.0,240.76,240.74,0.69]
[1757898223799,3.60061722,240.78,240.74,0.69]
[1757898223967,29.60061722,240.79,240.75,0.69]
[1757898224369,29.60061722,240.79,240.76,0.69]
[1757898224686,29.60061722,240.79,240.76,4.84348534]
[1757898224894,3.60061722,240.8,240.76,4.15348534]
[1757898225208,3.60061722,240.84,240.78,3.60061722]
[1757898225387,26.0,240.81,240.79,0.69]
[1757898225587,26.0,240.81,240.8,0.69]
[1757898225902,0.03,240.88,240.8,0.69]
[1757898226103,0.03,240.88,240.83,1.49237916]
[1757898226295,0.03,240.88,240.77,12.489852]
[1757898226599,1.49237916,240.86,240.81,0.69]
[1757898226894,26.03,240.85,240.82,4.15247902]
[1757898227605,26.0,240.84,240.81,0.69]
[1757898228100,26.0,240.84,240.81,4.84261783]
[1757898228497,1.52237916,240.85,240.81,4.84261783]
[1757898228994,0.03,240.85,240.81,4.84261783]
[1757898229376,26.0,240.84,240.81,4.84261783]
[1757898229589,26.0,240.84,240.82,0.69]
[1757898229800,0.03,240.85,240.83,0.69]
[1757898230002,0.03,240.85,240.81,5.64499699]
[1757898230177,0.03,240.85,240.81,18.13276938]
[1757898230382,0.03,240.85,240.82,0.69]
[1757898230999,0.03,240.85,240.82,4.84235836]
[1757898231305,0.03,240.85,240.8,0.69]
[1757898231491,1.52237916,240.85,240.81,0.69]
[1757898231679,26.0,240.84,240.81,0.69]
[1757898232008,26.0,240.84,240.8,4.15271296]
[1757898232301,26.0,240.84,240.8,4.84271296]
[1757898232509,1.52237916,240.85,240.8,4.84271296]
[1757898232717,0.03,240.85,240.81,0.69]
[1757898232898,0.03,240.85,240.8,4.15271296]
[1757898233090,0.03,240.85,240.82,4.15247902]
[1757898233587,1.49237916,240.83,240.78,4.15316151]
[1757898233792,1.49237916,240.82,240.78,4.15316151]
[1757898234391,1.49237916,240.79,240.76,12.490372]
[1757898234616,1.49237916,240.77,240.74,0.06]
[1757898234811,1.49237916,240.78,240.74,0.06]
[1757898235012,1.49237916,240.76,240.74,0.06]
[1757898236614,26.0,240.75,240.74,0.06]
[1757898236914,1.49237916,240.75,240.74,0.06]
[1757898238023,1.49237916,240.76,240.74,0.06]
[1757898238990,1.49237916,240.75,240.74,0.06]
[1757898240894,0.43,240.79,240.74,0.06]
[1757898241103,1.49237916,240.76,240.74,0.06]
[1757898242320,1.49237916,240.76,240.74,4.21382894]
[1757898242524,27.49237916,240.78,240.75,0.69]
[1757898242995,1.49237916,240.77,240.74,0.06]
[1757898243201,1.49237916,240.76,240.74,0.06]
[1757898243403,1.49237916,240.75,240.74,0.06]
[1757898243597,26.0,240.82,240.75,0.69]
[1757898243797,2.78158359,240.81,240.75,0.69]
[1757898244119,1.49237916,240.79,240.75,0.69]
[1757898244302,1.49237916,240.79,240.75,4.8435976]
[1757898244737,1.49237916,240.79,240.76,0.69]
[1757898245034,1.49237916,240.77,240.74,0.06]
[1757898245324,1.49237916,240.75,240.74,0.06]
[1757898245995,1.49237916,240.76,240.74,0.75]
[1757898246195,6.07606555,240.75,240.74,0.06]
[1757898246819,19.67165956,240.75,240.74,0.06]
[1757898247122,22.44905978,240.75,240.74,0.06]
[1757898249043,54.90905978,240.75,240.74,0.06]
[1757898250838,1.49237916,240.75,240.74,0.06]
[1757898251346,13.59559401,240.76,240.74,0.06]
[1757898251543,1.49237916,240.75,240.74,0.06]
[1757898251915,6.07606555,240.75,240.74,0.06]
[1757898252241,26.0,240.77,240.74,0.06]
[1757898252441,13.59559401,240.76,240.74,0.06]
[1757898252623,1.49237916,240.75,240.74,0.06]
[1757898253331,19.24165956,240.75,240.74,0.06]
[1757898254145,19.67165956,240.75,240.74,0.06]
[1757898254642,19.24165956,240.75,240.74,0.06]
[1757898255640,19.67165956,240.75,240.74,0.06]
[1757898256013,49.94121628,240.75,240.74,0.06]
[1757898256220,23.94121628,240.75,240.74,0.06]
[1757898256615,22.44883712,240.75,240.74,0.06]
[1757898256832,23.94121628,240.75,240.74,0.06]
[1757898257015,39.59559401,240.72,240.71,0.06]
[1757898257216,77.83752989,240.72,240.71,0.06]
[1757898257415,82.42173394,240.72,240.71,0.06]
[1757898259435,82.42173394,240.72,240.66,0.06]
[1757898259436,13.59559401,240.67,240.66,0.06]
[1757898259647,36.74803278,240.67,240.66,0.06]
[1757898259821,18.29362679,240.67,240.66,0.06]
[1757898260026,50.77362679,240.67,240.66,0.06]
[1757898261051,54.92869389,240.67,240.66,0.06]
[1757898261258,20.52631473,240.67,240.66,1e-08]
[1757898261430,51.72304027,240.67,240.66,1e-08]
[1757898261622,54.49869389,240.67,240.66,1e-08]
[1757898261819,54.63869389,240.67,240.66,1e-08]
[1757898262123,22.01869389,240.67,240.66,1e-08]
[1757898262359,22.01869389,240.67,240.66,0.71000001]
[1757898262360,32.6,240.67,240.66,0.71000001]
[1757898262571,34.09237916,240.67,240.66,1e-08]
[1757898263177,51.84304027,240.67,240.66,1e-08]
[1757898265162,51.86304027,240.67,240.66,1e-08]
[1757898265771,32.6,240.68,240.66,0.71000001]
[1757898266101,1.49237916,240.67,240.66,0.71000001]
[1757898266274,15.08797317,240.67,240.66,1e-08]
[1757898266475,19.24304027,240.67,240.66,1e-08]
[1757898266772,13.59559401,240.67,240.66,0.71000001]
[1757898266959,15.08797317,240.67,240.66,0.71000001]
[1757898268046,15.08797317,240.67,240.66,1e-08]
[1757898270890,15.51797317,240.67,240.66,1e-08]
[1757898271184,15.08797317,240.58,240.57,0.71]
[1757898271988,14.55303664,240.58,240.57,0.71]
[1757898272190,18.70965813,240.58,240.57,0.71]
[1757898272355,26.95744263,240.58,240.57,0.71]
[1757898272561,30.22803471,240.58,240.57,0.71]